Workbook

Sheet Kostnader för badrumsrenovering
B2: Kostnadskalkyl för badrumsrenovering
B4: Artiklar | C4: Kvantitet | D4: Specificerad kostnad (SEK) | F4: Totalkostnad (SEK)
B5: Badkar/dusch | D5: Uppskattad | E5: Faktisk | F5: Uppskattad | G5: Faktisk
B6: Kar, gjutjärn, 5 tum, standard | C6: 1 | D6: 2500 | F6: =C6*D6 -> 2500 | G6: =C6*E6 -> 0
B7: Duschdörrar, med gångjärn, standard | C7: 1 | D7: 2000 | F7: =C7*D7 -> 2000 | G7: =C7*E7 -> 0
B8: Duschanordning, standard | C8: 1 | D8: 500 | F8: =C8*D8 -> 500 | G8: =C8*E8 -> 0
B9: Badkarsvägg, standard | C9: 1 | D9: 2000 | F9: =C9*D9 -> 2000 | G9: =C9*E9 -> 0
B10: Badrumsskåp | D10: Uppskattad | E10: Faktisk | F10: Uppskattad | G10: Faktisk
B11: Medicinskåp 60 cm, deluxe | C11: 1 | D11: 2000 | F11: =C11*D11 -> 2000 | G11: =C11*E11 -> 0
B12: Toalettbord 80 cm, standard | C12: 2 | D12: 1000 | F12: =C12*D12 -> 2000 | G12: =C12*E12 -> 0
B13: Bänkskivor | D13: Uppskattad | E13: Faktisk | F13: Uppskattad | G13: Faktisk
B14: Kakel, deluxe (kvant. i löpmeter) | C14: 5 | D14: 2250 | F14: 11250 | G14: =C14*E14 -> 0
B15: Kranar | D15: Uppskattad | E15: Faktisk | F15: Uppskattad | G15: Faktisk
B16: Badkarskran, standard | C16: 1 | D16: 900 | F16: =C16*D16 -> 900 | G16: =C16*E16 -> 0
B17: Duschblandare, enhands-, standard | C17: 1 | D17: 1150 | F17: =C17*D17 -> 1150 | G17: =C17*E17 -> 0
B18: Tvättfatskran, standard | C18: 1 | D18: 950 | F18: =C18*D18 -> 950 | G18: =C18*E18 -> 0
B19: Golvbeläggning | D19: Uppskattad | E19: Faktisk | F19: Uppskattad | G19: Faktisk
B20: Kakel, standard (kvant. i kvadratmeter) | C20: 35 | D20: 120 | F20: =C20*D20 -> 4200 | G20: =C20*E20 -> 0
B21: Smidesvaror | D21: Uppskattad | E21: Faktisk | F21: Uppskattad | G21: Faktisk
B22: Handduksstång, standard | C22: 2 | D22: 150 | F22: =C22*D22 -> 300 | G22: =C22*E22 -> 0
B23: Toalettpappershållare | C23: 1 | D23: 100 | F23: =C23*D23 -> 100 | G23: =C23*E23 -> 0
B24: Belysning | D24: Uppskattad | E24: Faktisk | F24: Uppskattad | G24: Faktisk
B25: Försänkta lampor, standard | C25: 4 | D25: 250 | F25: =C25*D25 -> 1000 | G25: =C25*E25 -> 0
B26: Tvättfat | D26: Uppskattad | E26: Faktisk | F26: Uppskattad | G26: Faktisk
B27: Tvättfat, standard | C27: 2 | D27: 600 | F27: =C27*D27 -> 1200 | G27: =C27*E27 -> 0
B28: Toalett/bidé | D28: Uppskattad | E28: Faktisk | F28: Uppskattad | G28: Faktisk
B29: Toalett, standard | C29: 1 | D29: 1200 | F29: =C29*D29 -> 1200 | G29: =C29*E29 -> 0
B30: Ventilation | D30: Uppskattad | E30: Faktisk | F30: Uppskattad | G30: Faktisk
B31: Fläkt/lampa, standard | C31: 1 | D31: 600 | F31: =C31*D31 -> 600 | G31: =C31*E31 -> 0
B32: Väggar | D32: Uppskattade | E32: Faktisk | F32: Uppskattade | G32: Faktisk
B33: Tapet, deluxe (kvant i kvadratmeter) | C33: 192 | D33: 9.5 | F33: =C33*D33 -> 1824 | G33: =C33*E33 -> 0
B34: Fönster | D34: Uppskattad | E34: Faktisk | F34: Uppskattad | G34: Faktisk
B35: Fönsterkarm i trä, deluxe | C35: 2 | D35: 1200 | F35: =C35*D35 -> 2400 | G35: =C35*E35 -> 0
B36: Övrigt | D36: Uppskattad | E36: Faktisk | F36: Uppskattad | G36: Faktisk
F37: =C37*D37 -> 0 | G37: =C37*E37 -> 0
B38: Delsumma | F38: =SUM(F6:F37) -> 38074 | G38: =SUM(G6:G37) -> 0
B39: Oförutsedda utgifter | F39: Uppskattad | G39: Faktisk
B40: Lägg till 30 % | F40: =F38*0.3 -> 11422.2 | G40: 0
B41: Summa | F41: =SUM(F38,F40) -> kr 49,496.20 | G41: =SUM(G38,G40) -> kr 0.00
